bitfinex/quotes_ETHUSD_20241024
["timestamp","ask_amount","ask_price","bid_price","bid_amount"]
[1729788329526,3.97001,2518.9,2518.4,7.94134]
[1729788329726,3.97001,2518.9,2518.4,4.839844]
[1729788330023,3.97001,2518.9,2518.4,8.810544]
[1729788331494,3.97001,2518.9,2518.4,4.839844]
[1729788331704,3.96984,2519.0,2518.5,3.97054]
[1729788332407,3.97001,2518.9,2518.4,4.839844]
[1729788332624,0.7986,2518.9,2518.3,0.7507]
[1729788332829,3.97023,2518.8,2518.3,4.72155]
[1729788333925,4.76862,2518.9,2518.4,3.97064]
[1729788334217,3.9699,2519.0,2518.5,3.97055]
[1729788336186,3.96967,2519.1,2518.6,3.97032]
[1729788336387,3.96967,2519.1,2518.7,3.97022]
[1729788337922,3.96951,2519.2,2518.8,3.97011]
[1729788338230,3.96951,2519.2,2518.7,3.97022]
[1729788338426,3.96974,2519.1,2518.7,3.97022]
[1729788339196,3.96951,2519.2,2518.7,3.97022]
[1729788339599,0.8025,2519.3,2518.8,3.97005]
[1729788339600,7.77192,2519.3,2518.8,3.97005]
[1729788340023,7.77192,2519.3,2518.7,4.52028]
[1729788340024,3.96967,2519.1,2518.7,4.52028]
[1729788340786,3.96958,2519.2,2518.7,4.52028]
[1729788341130,3.96958,2519.2,2518.7,5.140959]
[1729788341299,0.8025,2519.3,2518.7,1.170679]
[1729788341500,3.96931,2519.4,2518.7,0.55]
[1729788341709,3.96952,2519.2,2518.8,3.97014]
[1729788342023,3.96952,2519.2,2518.7,4.52027]
[1729788342024,3.96973,2519.1,2518.7,4.52027]
[1729788342196,3.96973,2519.1,2518.7,0.55]
[1729788343012,3.96958,2519.2,2518.7,4.5203]
[1729788343193,7.93921,2519.2,2518.7,5.140981]
[1729788343528,3.96933,2519.4,2518.8,3.97011]
[1729788343714,0.8088,2519.5,2518.8,3.97011]
[1729788343916,3.96943,2519.3,2518.9,0.7556]
[1729788344097,3.96951,2519.2,2518.9,0.7556]
[1729788344528,7.93912,2519.2,2518.9,0.7556]
[1729788344833,3.96951,2519.2,2518.9,0.7556]
[1729788345038,3.96944,2519.3,2518.9,1.35317888]
[1729788345942,3.96944,2519.3,2518.9,0.7556]
[1729788346535,3.96949,2519.3,2518.9,0.7556]
[1729788347202,3.9692,2519.4,2519.0,3.96975]
[1729788347505,3.9692,2519.4,2518.9,0.7556]
[1729788347704,3.96936,2519.3,2518.9,5.3151901]
[1729788348329,4.76552,2519.2,2518.8,3.97012]
[1729788350631,0.796,2519.2,2518.9,3.96989]
[1729788350831,5.60436107,2519.3,2518.9,3.96989]
[1729788350832,3.96938,2519.3,2518.9,3.96989]
[1729788351033,3.96935,2519.3,2518.8,5.60510107]
[1729788351345,3.96935,2519.3,2518.8,3.97012]
[1729788351509,3.96935,2519.3,2518.8,5.12661321]
[1729788351909,3.96958,2519.2,2518.8,5.12661321]
[1729788352807,3.96958,2519.2,2518.8,9.09667321]
[1729788353745,3.96936,2519.3,2518.9,3.96987]
[1729788353915,3.96936,2519.3,2519.0,0.8055]
[1729788355145,3.96952,2519.2,2519.0,0.8055]
[1729788357255,3.96967,2519.1,2518.8,0.8002]
[1729788357533,3.96985,2519.0,2518.6,4.7705]
[1729788358847,3.96985,2519.0,2518.6,8.74089]
[1729788359216,3.96985,2519.0,2518.6,4.7705]
[1729788359558,5.60483107,2519.0,2518.6,0.8002]
[1729788359768,3.97012,2518.9,2518.5,3.97056]
[1729788360064,3.96984,2519.0,2518.6,3.97039]
[1729788360265,0.7755,2519.1,2518.6,0.64231711]
[1729788360425,3.96967,2519.1,2518.7,3.97021]
[1729788361221,3.96912,2519.5,2518.7,3.97021]
[1729788361222,1.63498107,2519.4,2518.8,0.8178]
[1729788361467,0.1488,2519.3,2518.9,3.96994]
[1729788361831,4.11818,2519.3,2518.9,3.96994]
[1729788362036,3.96952,2519.2,2518.8,0.8178]
[1729788362237,3.96952,2519.2,2518.8,4.78786]
[1729788362440,3.96952,2519.2,2518.8,5.89139182]
[1729788363306,5.60450107,2519.2,2518.8,4.78786]
[1729788363461,1.63498107,2519.0,2518.6,4.73339]
[1729788363626,5.60487107,2519.0,2518.6,4.73339]
[1729788364022,4.72995,2519.1,2518.6,0.763]
[1729788364023,1.63498107,2518.8,2518.6,0.763]
[1729788364225,1.63498107,2518.8,2518.3,3.83262944]
[1729788364226,6.16576818,2518.8,2518.4,0.7653]
[1729788364426,3.97028,2518.8,2518.4,0.7653]
[1729788364630,3.97028,2518.8,2518.4,4.73604]
[1729788365655,5.60505107,2518.9,2518.4,4.73604]
[1729788365963,3.96967,2519.1,2518.6,3.97045]
[1729788366165,3.96967,2519.1,2518.7,0.8325]
[1729788367147,5.60465107,2519.1,2518.7,0.8325]
[1729788368359,3.96967,2519.1,2518.7,0.8325]
[1729788368681,3.96967,2519.1,2518.7,5.45451433]
[1729788368886,1.78378107,2519.3,2518.7,3.1192054]
[1729788369178,0.1488,2519.3,2519.1,0.756]
[1729788370650,0.1488,2519.3,2519.2,5.60449107]
[1729788370844,0.1488,2519.3,2519.2,4.80191]
[1729788371049,0.1488,2519.3,2519.2,5.84256211]
[1729788371247,0.1488,2519.3,2519.2,7.55692664]
[1729788371475,0.1488,2519.3,2519.2,7.47754318]
[1729788371673,0.1488,2519.3,2519.2,8.10692557]
[1729788371979,0.1488,2519.3,2519.2,8.02754318]
[1729788374149,0.1488,2519.3,2519.2,12.66252425]
[1729788374353,0.1488,2519.3,2519.2,12.7107107]
[1729788375467,0.1488,2519.3,2519.2,12.7207107]
[1729788380288,0.1488,2519.3,2519.2,14.38414364]
[1729788380489,0.1488,2519.3,2519.2,15.34292982]
[1729788382356,0.1488,2519.3,2519.2,13.55120326]
[1729788387510,0.1488,2519.3,2519.2,12.7207107]
[1729788391701,0.1488,2519.3,2519.2,12.1607107]
[1729788391904,0.1488,2519.3,2519.2,8.84256211]
[1729788393405,0.1488,2519.3,2519.2,9.39256211]
[1729788393608,0.1488,2519.3,2519.2,12.7107107]
[1729788394435,0.1488,2519.3,2519.2,11.0263548]
[1729788395401,0.1488,2519.3,2519.2,12.66014749]
[1729788395709,0.1488,2519.3,2519.2,11.0263548]
[1729788396187,0.1488,2519.3,2519.2,12.66014749]
[1729788396374,0.1488,2519.3,2519.2,12.71113047]
[1729788396994,0.1488,2519.3,2519.2,12.72113047]
[1729788397708,0.1488,2519.3,2519.2,8.56016211]
[1729788402097,0.1488,2519.3,2519.2,4.51951]
[1729788414203,0.1488,2519.3,2519.2,5.29301]
[1729788414404,0.1488,2519.3,2519.2,5.37238298]
[1729788415134,0.1488,2519.3,2519.2,5.37238333]
[1729788415338,0.1488,2519.3,2519.2,5.29301]
[1729788415641,0.1488,2519.3,2519.2,6.42700006]
[1729788415804,0.1488,2519.3,2519.2,6.50637317]
[1729788416336,0.1488,2519.3,2519.2,8.06111313]
[1729788418708,0.1488,2519.3,2519.2,8.89160569]
[1729788421145,0.1488,2519.3,2519.2,5.65350006]
[1729788421354,0.1488,2519.3,2519.2,4.51951]
[1729788422420,0.1488,2519.3,2519.2,6.15362307]
[1729788423242,0.1488,2519.3,2519.2,4.51951]
[1729788423445,0.1488,2519.3,2519.2,6.15362307]
[1729788423648,0.1488,2519.3,2519.2,4.51951]
[1729788425248,0.7656,2519.2,2519.0,3.96971]
[1729788425717,0.7656,2519.2,2519.0,7.93943]
[1729788426408,0.7656,2519.2,2519.0,3.96971]
[1729788426919,0.7656,2519.2,2519.1,3.96967]
[1729788427563,0.7656,2519.2,2519.1,4.51967]
[1729788427743,0.7656,2519.2,2518.9,7.93982]
[1729788427919,0.7656,2519.2,2519.0,0.55]
[1729788428120,0.7656,2519.2,2519.0,4.51968]
[1729788428322,0.7656,2519.2,2519.1,3.96967]
[1729788428823,0.7656,2519.2,2519.1,4.51967]
[1729788429024,0.1488,2519.3,2519.2,4.51951]
[1729788429333,0.1488,2519.3,2519.2,6.15362307]
[1729788429665,0.1488,2519.3,2519.2,7.04519706]
[1729788430027,0.1488,2519.3,2519.2,7.87568962]
[1729788430237,0.1488,2519.3,2519.2,7.79631563]
[1729788430454,0.1488,2519.3,2519.2,9.20694763]
[1729788433371,0.1488,2519.3,2519.2,7.57283456]
[1729788433560,0.1488,2519.3,2519.2,7.56425507]
[1729788434352,0.1488,2519.3,2519.2,8.47412061]
[1729788434557,0.1488,2519.3,2519.2,8.39474763]
[1729788434782,0.1488,2519.3,2519.2,11.39474763]
[1729788434944,0.1488,2519.3,2519.2,10.56425507]
[1729788435149,0.1488,2519.3,2519.2,13.18749592]
[1729788436647,0.1488,2519.3,2519.2,13.98609592]
[1729788437092,0.1488,2519.3,2519.2,12.73932791]
[1729788437247,0.1488,2519.3,2519.2,13.98808268]
[1729788437448,0.1488,2519.3,2519.2,13.9882515]
[1729788437648,0.1488,2519.3,2519.2,13.98825105]
[1729788438473,0.1488,2519.3,2519.2,12.73932791]
[1729788439769,0.1488,2519.3,2519.2,14.40276085]
[1729788440383,0.1488,2519.3,2519.2,12.73932791]
[1729788440584,0.1488,2519.3,2519.2,13.98822032]
[1729788440795,0.1488,2519.3,2519.2,12.73932791]
[1729788441281,0.1488,2519.3,2519.2,14.40276085]
[1729788441887,0.1488,2519.3,2519.2,12.73932791]
[1729788443292,0.1488,2519.3,2519.2,14.40276085]
[1729788443448,0.1488,2519.3,2519.2,13.98827801]
[1729788443969,0.1488,2519.3,2519.2,13.98831172]
[1729788444171,0.1488,2519.3,2519.2,6.96951]
[1729788444377,0.1488,2519.3,2519.2,7.80222759]
[1729788445164,0.1488,2519.3,2519.2,9.43634066]
[1729788445363,0.1488,2519.3,2519.2,7.80222759]
[1729788445658,0.1488,2519.3,2519.2,9.98634066]
[1729788445852,0.1488,2519.3,2519.2,11.50684011]
[1729788446065,0.1488,2519.3,2519.2,10.67412252]
[1729788446476,0.1488,2519.3,2519.2,13.30018299]
[1729788447953,0.1488,2519.3,2519.2,14.93429606]
[1729788448184,0.1488,2519.3,2519.2,13.30018299]
[1729788448391,0.1488,2519.3,2519.2,12.05119918]
[1729788448892,0.1488,2519.3,2519.2,13.30012538]
[1729788449091,0.1488,2519.3,2519.2,12.05119918]
[1729788449625,0.1488,2519.3,2519.2,13.71463212]
[1729788449960,0.1488,2519.3,2519.2,13.30011895]
[1729788450161,0.1488,2519.3,2519.2,12.05119918]
[1729788450362,0.1488,2519.3,2519.2,13.71463212]
[1729788450599,0.1488,2519.3,2519.2,12.05119918]
[1729788451798,0.1488,2519.3,2519.2,10.14542779]
[1729788452004,0.1488,2519.3,2519.2,8.35210973]
[1729788452532,0.1488,2519.3,2519.2,7.51951]
[1729788452794,0.1488,2519.3,2519.2,9.15362307]
[1729788453094,0.1488,2519.3,2519.2,7.80211871]
[1729788453874,0.1488,2519.3,2519.2,9.43623178]
[1729788454187,0.1488,2519.3,2519.2,8.60362307]
[1729788454392,0.1488,2519.3,2519.2,13.3279554]
[1729788454694,0.1488,2519.3,2519.2,10.70217978]
[1729788454895,0.9631,2519.3,2519.2,7.51951]
[1729788455201,0.9631,2519.3,2519.2,3.96951]
[1729788455384,0.9631,2519.3,2519.1,3.96964]
[1729788456276,0.9631,2519.3,2519.2,3.96951]
[1729788458519,0.1488,2519.3,2519.2,4.51951]
[1729788458815,0.1488,2519.3,2519.2,4.59889272]
[1729788459003,0.1488,2519.3,2519.2,4.51951]
[1729788460587,0.9631,2519.3,2519.2,4.51951]
[1729788463079,0.1488,2519.3,2519.2,4.51951]
[1729788464195,0.1488,2519.3,2519.2,6.23300375]
[1729788464515,0.1488,2519.3,2519.2,6.23300392]
[1729788464686,0.1488,2519.3,2519.2,7.41925631]
[1729788465308,0.1488,2519.3,2519.2,8.17255549]
[1729788466993,0.1488,2519.3,2519.2,9.96527581]
[1729788467397,0.1488,2519.3,2519.2,7.33987546]
[1729788467584,0.1488,2519.3,2519.2,10.04463983]
[1729788467788,0.1488,2519.3,2519.2,7.33987546]
[1729788468121,0.1488,2519.3,2519.2,9.96525773]
[1729788468730,0.1488,2519.3,2519.2,7.33987546]
[1729788469389,0.1488,2519.3,2519.2,5.70576239]
[1729788469594,0.1488,2519.3,2519.2,5.35188821]
[1729788469795,0.1488,2519.3,2519.2,4.51951]
[1729788470126,0.1488,2519.3,2519.2,3.96951]
[1729788471124,0.1488,2519.3,2519.2,4.51951]
[1729788476650,0.1488,2519.3,2519.1,4.51959]
[1729788477420,0.7891,2519.2,2518.9,3.96991]
[1729788478030,0.7891,2519.2,2518.9,7.93983]
[1729788478749,2.42321307,2519.2,2518.7,4.80258821]
[1729788478923,0.7798,2519.0,2518.8,0.55]
[1729788479263,0.7798,2519.0,2518.8,4.52012]
[1729788479556,0.7798,2519.0,2518.8,0.55]
[1729788479766,1.41815831,2519.0,2518.6,3.9703]
[1729788479953,1.41815831,2519.0,2518.7,3.97027]
[1729788479954,0.7798,2519.0,2518.7,3.97027]
[1729788480631,0.7798,2519.0,2518.7,7.94046]
[1729788480978,0.7798,2519.0,2518.7,3.97019]
[1729788481271,0.7581,2518.5,2518.2,0.83237821]
[1729788481429,0.472855,2518.4,2518.2,3.97107]
[1729788481635,0.472855,2518.4,2518.1,3.97117]
[1729788481636,0.7581,2518.5,2518.3,3.97091]
[1729788482081,0.7581,2518.5,2518.2,3.97106]
[1729788482979,0.7581,2518.5,2518.3,3.97091]
[1729788483268,0.7581,2518.5,2518.2,3.97106]
[1729788483632,0.7581,2518.5,2518.3,3.97093]
[1729788483862,0.7581,2518.5,2518.2,3.97106]
[1729788484167,0.7772,2518.3,2518.0,3.97131]
[1729788484375,0.7772,2518.3,2518.0,7.94261]
[1729788485036,0.7772,2518.3,2518.1,3.97122]
[1729788486672,0.7772,2518.3,2518.0,7.94261]
[1729788486860,0.7772,2518.3,2518.0,7.94264]
[1729788487375,0.7772,2518.3,2518.1,3.97121]
[1729788490438,0.8121,2518.5,2518.2,0.55]
[1729788490638,0.8121,2518.7,2518.5,3.97052]
[1729788490836,0.8121,2518.7,2518.5,7.94106]
[1729788491047,0.8121,2518.7,2518.5,3.97052]
[1729788491048,2.44621307,2518.7,2518.5,3.97052]
[1729788491452,0.8121,2518.7,2518.5,3.97052]
[1729788491681,4.79738,2519.2,2518.6,4.52036]
[1729788491867,1.63411307,2519.0,2518.7,3.9702]
[1729788492282,4.79738,2519.2,2518.7,3.9702]
[1729788492283,0.7956,2518.8,2518.7,3.9702]
[1729788492973,0.7956,2519.1,2519.0,3.96982]
[1729788493156,2.57851307,2519.3,2519.1,3.96964]
[1729788493792,2.57851307,2519.3,2519.0,3.96982]
[1729788493975,0.9444,2519.3,2519.1,3.96967]
[1729788494804,2.57851307,2519.3,2519.1,3.96967]
[1729788494984,1.63411307,2519.2,2518.8,3.97002]
[1729788495188,1.63411307,2519.2,2518.9,3.96991]
[1729788495422,4.9138,2519.3,2519.0,3.96972]
[1729788495423,2.57851307,2519.3,2519.0,3.96972]
[1729788496120,2.57851307,2519.3,2519.1,3.96965]
[1729788496416,0.1488,2519.3,2519.0,0.55]
[1729788496711,0.1488,2519.3,2519.2,3.96951]
[1729788496912,0.1488,2519.3,2519.2,4.59888908]
[1729788497216,0.1488,2519.3,2519.2,7.59888908]
[1729788502902,0.1488,2519.3,2519.2,8.41218908]
[1729788503120,0.1488,2519.3,2519.2,8.33281]
[1729788503437,0.1488,2519.3,2519.2,9.94130096]
[1729788504321,0.1488,2519.3,2519.2,9.95130096]
[1729788506801,1e-05,2519.3,2519.2,9.95130096]
[1729788508394,1e-05,2519.3,2519.2,10.78367917]
[1729788508999,1e-05,2519.3,2519.2,9.95130096]
[1729788509735,3.96649,2521.2,2520.5,0.55]
[1729788509978,0.7996,2521.1,2520.7,3.96707]
[1729788510274,4.76612,2521.1,2520.7,3.96707]
[1729788510457,4.76612,2521.1,2520.7,7.93414]
[1729788510639,4.76612,2521.1,2520.7,7.93413]
[1729788510640,0.7996,2521.1,2520.7,7.93413]
[1729788510849,0.476598,2521.0,2520.7,3.96706]
[1729788511152,0.476598,2521.0,2520.7,7.93413]
[1729788511355,0.476598,2521.0,2520.7,3.96706]
[1729788511756,0.476598,2521.0,2520.7,7.93412]
[1729788511960,0.476598,2521.0,2520.7,3.96706]
[1729788512476,0.476598,2521.0,2520.2,0.8288]
[1729788512477,0.5242738,2520.9,2520.6,3.96729]
[1729788512660,0.476598,2521.0,2520.7,3.96707]
[1729788514237,4.76612,2521.1,2520.8,3.96696]
[1729788514238,0.7996,2521.1,2520.8,3.96696]
[1729788515076,4.76613,2521.1,2520.7,3.96707]
[1729788515870,0.7996,2521.1,2520.7,3.96707]
[1729788516086,4.76612,2521.1,2520.7,3.96707]
[1729788516277,0.476612,2521.0,2520.7,3.96707]
[1729788516450,0.476612,2521.0,2520.6,3.96729]
[1729788516451,0.7964,2520.9,2520.6,3.96729]
[1729788516646,0.7964,2520.9,2520.7,3.96714]
[1729788517676,0.7964,2520.9,2520.8,3.96699]
[1729788517879,0.7964,2520.9,2520.7,3.96714]
[1729788518582,0.7964,2520.9,2520.7,7.93417]
[1729788519081,0.7964,2520.9,2520.7,3.96703]
[1729788520092,0.7964,2520.9,2520.6,3.96728]
[1729788520246,0.7664,2520.8,2520.3,3.96765]
[1729788520449,0.7664,2520.8,2520.4,3.96759]
[1729788520845,4.73341,2520.8,2520.4,3.96759]
[1729788521196,4.78543,2520.6,2520.1,3.96799]
[1729788521487,4.78543,2520.6,2520.1,7.93598]
[1729788521699,4.78572,2520.4,2519.8,3.96856]
[1729788521846,3.96778,2520.3,2519.9,3.96833]
[1729788522182,4.78563,2520.4,2520.0,3.96824]
[1729788522349,0.818,2520.4,2520.0,3.96824]
[1729788522550,0.818,2520.4,2520.0,3.96816]
[1729788522784,5.3121033,2520.4,2520.0,3.96816]
[1729788523053,5.3121033,2520.4,2520.0,7.93631]
[1729788523054,1.3444033,2520.4,2520.0,7.93631]
[1729788523255,5.3120533,2520.4,2520.0,3.96815]
[1729788524591,3.96786,2520.3,2519.9,0.55]
[1729788524895,0.7803,2520.2,2519.9,4.51834]
[1729788527668,0.7803,2520.2,2520.0,3.96818]
[1729788527987,0.7803,2520.2,2520.1,3.96809]
[1729788528192,0.7803,2520.2,2520.1,4.51809]
[1729788528395,4.72851,2520.6,2520.2,3.96793]
[1729788528661,0.472851,2520.5,2520.2,3.96793]
[1729788529303,0.472851,2520.5,2520.2,3.96784]
[1729788529607,0.7612,2520.6,2520.3,3.96768]
[1729788530597,0.7612,2520.6,2520.2,3.96786]
[1729788530804,0.7612,2520.6,2520.3,0.55]
[1729788531188,0.7612,2520.6,2520.3,4.51768]
[1729788532117,0.7906,2520.9,2520.5,3.96746]
[1729788532267,1.51932516,2520.9,2520.5,3.96746]
[1729788532470,0.7906,2520.9,2520.5,3.96746]
[1729788532672,0.7906,2520.9,2520.6,3.96723]
[1729788537875,0.777,2521.0,2520.7,3.96714]
[1729788538504,0.777,2521.0,2520.6,3.96719]
[1729788538907,0.777,2521.0,2520.8,3.9669]
[1729788539212,0.777,2521.0,2520.7,0.55]
[1729788539418,3.96636,2521.2,2520.8,3.96698]
[1729788539573,4.74336,2521.2,2520.8,3.96698]
[1729788540008,8.70982,2521.2,2520.8,3.96698]
[1729788540318,4.74339,2521.2,2520.7,8.48415]
[1729788541280,4.74339,2521.2,2520.8,3.96698]
[1729788541476,0.777,2521.2,2520.8,3.96698]
[1729788541706,4.74337,2521.2,2520.7,5.447015]
[1729788542016,0.777,2521.2,2520.8,3.96689]
[1729788542312,4.75714,2521.4,2521.0,4.781]
[1729788542519,0.791,2521.4,2521.0,8.74758]
[1729788542689,3.9659,2521.5,2521.1,3.96649]
[1729788542690,3.96591,2521.5,2521.1,3.96649]
[1729788543176,4.75682,2521.6,2521.2,3.96628]
[1729788543377,4.75682,2521.6,2521.1,0.53337709]
[1729788543578,4.75682,2521.6,2521.0,4.78093]
[1729788543785,4.75682,2521.6,2521.1,3.96645]
[1729788544916,4.75682,2521.6,2521.3,3.96609]
[1729788544917,0.791,2521.6,2521.3,3.96609]
[1729788545119,3.0,2522.1,2521.2,3.96635]
[1729788545120,4.75653,2521.8,2521.2,3.96635]
[1729788545318,3.96565,2521.7,2521.1,3.96648]
[1729788545492,3.96565,2521.7,2521.1,7.9329]
[1729788545695,3.96565,2521.7,2521.1,3.96642]
[1729788547747,3.96565,2521.7,2521.0,0.8144]
[1729788548051,0.791,2521.4,2521.1,0.53337609]
[1729788548549,0.7505,2521.6,2521.1,0.61269541]
[1729788548711,4.71625,2521.6,2521.1,0.53337609]
[1729788548910,0.7505,2521.6,2521.1,3.96649]
[1729788549150,0.7505,2521.6,2521.0,4.78106]
[1729788549151,0.7505,2521.6,2521.0,0.8144]
[1729788549347,0.7505,2521.6,2520.9,0.55262089]
[1729788549348,3.96597,2521.5,2520.9,0.55262089]
[1729788549548,0.7646,2521.2,2520.8,0.7836]
[1729788549761,4.73103,2521.2,2520.8,0.7836]
[1729788549909,4.73103,2521.2,2520.7,0.929985]
[1729788550109,7.28629156,2521.6,2520.8,0.07932785]
[1729788550352,4.72485,2521.5,2520.9,0.8241]
[1729788551011,0.7589,2521.5,2520.9,4.79085]
[1729788551442,0.7589,2521.5,2521.0,3.96667]
[1729788551946,4.79304,2521.7,2521.1,4.04581814]
[1729788552154,3.96574,2521.6,2521.2,0.80124181]
[1729788552343,4.79304,2521.7,2521.0,7.93321]
[1729788552648,8.7587,2521.7,2521.0,7.93321]
[1729788553212,3.9658,2521.6,2521.0,3.9666]
[1729788553408,0.8274,2521.7,2520.9,4.79091]
[1729788553636,4.79298,2521.7,2521.1,4.79494]
[1729788553834,4.79298,2521.7,2521.2,0.48742583]
[1729788553835,3.96573,2521.6,2521.2,0.48742583]
[1729788554655,4.793,2521.7,2521.1,4.79498]
[1729788555238,4.793,2521.7,2521.1,0.8285]
[1729788555470,3.96581,2521.6,2521.1,0.8285]
[1729788556932,3.96594,2521.5,2520.7,0.7567]
[1729788557129,3.96644,2521.2,2520.7,0.7567]
[1729788557332,3.96644,2521.2,2520.8,0.7724]
[1729788557735,4.78004,2521.3,2520.8,0.7724]
[1729788557933,4.78004,2521.3,2520.7,4.72384]
[1729788558134,8.74633,2521.3,2520.7,4.72384]
[1729788558342,8.74628,2521.3,2520.7,4.72384]
[1729788558575,4.77999,2521.3,2520.7,4.72384]
[1729788559377,4.77999,2521.3,2520.7,0.7567]
[1729788559378,3.96637,2521.2,2520.7,0.7567]
[1729788559565,3.9666,2521.1,2520.7,0.7567]
[1729788559729,3.9666,2521.1,2520.7,1.229103]
[1729788560685,3.96637,2521.2,2520.7,1.229103]
[1729788562036,7.93283,2521.2,2520.7,1.229103]
[1729788562372,3.96637,2521.2,2520.7,1.229103]
[1729788563974,3.0,2521.7,2520.8,0.07932833]
[1729788564279,3.96596,2521.5,2520.9,0.7968]
[1729788564579,4.78853,2521.6,2521.0,4.04597174]
[1729788564785,8.75435,2521.6,2521.1,0.7793]
[1729788565276,3.96596,2521.5,2521.1,0.7793]
[1729788565449,3.96596,2521.5,2521.1,1.26184417]
[1729788565638,7.93193,2521.5,2521.1,0.7793]
[1729788566835,3.96596,2521.5,2521.1,0.7793]
[1729788569258,7.93193,2521.5,2521.1,0.7793]
[1729788570193,3.96596,2521.5,2521.1,0.7793]
[1729788570489,3.96611,2521.4,2521.1,0.7793]
[1729788571851,0.8228,2521.6,2521.1,0.7793]
[1729788572156,3.96624,2521.3,2520.7,0.826]
[1729788572356,3.96624,2521.3,2520.8,0.479324]
[1729788573061,3.96613,2521.4,2520.8,0.479324]
[1729788573257,7.93226,2521.4,2520.8,0.479324]
[1729788573459,3.96613,2521.4,2520.8,0.479324]
[1729788573735,3.96613,2521.4,2520.9,0.826]
[1729788573896,3.96613,2521.4,2521.0,0.5272304]
[1729788574395,3.96623,2521.3,2521.0,0.5272304]
[1729788574592,3.96668,2521.0,2520.6,0.82800421]
[1729788574769,3.9669,2520.9,2520.5,0.07933311]
[1729788574965,3.96668,2521.0,2520.5,0.07933311]
[1729788575169,3.96691,2520.9,2520.5,0.07933311]
[1729788575502,3.96668,2521.0,2520.5,0.5713346]
[1729788576060,3.96684,2520.9,2520.5,0.5713346]
[1729788577478,7.93318,2521.1,2520.5,0.5713346]
[1729788577682,7.93318,2521.1,2520.6,0.814]
[1729788578213,3.96676,2521.0,2520.6,0.814]
[1729788580302,3.96676,2521.0,2520.6,1.43877206]
[1729788582577,3.96653,2521.1,2520.7,0.07933734]
[1729788582907,3.96653,2521.1,2520.6,1.43877206]
[1729788585737,3.96675,2521.0,2520.6,1.43877206]
[1729788586035,3.96685,2520.9,2520.6,0.814]
[1729788592325,5.59953181,2520.9,2520.6,0.814]
[1729788592536,3.96685,2520.9,2520.6,0.814]
[1729788593153,5.59953181,2520.9,2520.6,0.814]
[1729788594830,3.96685,2520.9,2520.6,0.814]
[1729788595251,5.59943181,2521.0,2520.6,1.3816386]
[1729788595458,3.96626,2521.3,2520.7,0.84264052]
[1729788595635,3.96626,2521.3,2520.7,5.59980181]
[1729788595829,0.7653,2521.4,2520.7,5.59980181]
[1729788595830,5.59873181,2521.4,2520.8,0.8283]
[1729788596030,5.59873181,2521.4,2521.0,0.8283]
[1729788596342,5.59892181,2521.3,2521.0,0.8283]
[1729788597257,3.96624,2521.3,2521.0,0.8283]
[1729788597458,3.96597,2521.5,2521.0,0.8283]
[1729788597661,1.63268181,2521.3,2521.0,0.8283]
[1729788598163,5.59899181,2521.3,2521.0,0.8283]
[1729788599849,1.63268181,2521.2,2521.0,0.8283]
[1729788600162,5.59905181,2521.2,2521.0,0.8283]
[1729788600364,3.96652,2521.1,2521.0,0.8283]
[1729788600661,5.59906181,2521.2,2520.8,0.7619]
[1729788600864,1.63268181,2521.1,2520.8,1.84557968]
[1729788601093,5.59929181,2521.1,2520.8,0.7619]
[1729788601653,3.96661,2521.1,2520.8,0.7619]
[1729788603365,5.59929181,2521.1,2520.8,0.7619]
[1729788603574,3.96661,2521.1,2520.8,0.7619]
[1729788603740,3.96671,2521.0,2520.8,0.7619]
[1729788604157,3.96683,2520.9,2520.8,0.7619]
[1729788604354,5.59936181,2521.0,2520.8,0.7619]
[1729788604624,3.96668,2521.0,2520.8,0.7619]
[1729788604829,1.63268181,2520.9,2520.8,0.7619]
[1729788605138,9.56612181,2521.0,2520.6,0.8131]
[1729788605328,5.59936181,2521.0,2520.6,0.8131]
[1729788605529,3.96685,2520.9,2520.6,0.8131]
[1729788606547,5.59922181,2521.1,2520.6,0.89243691]
[1729788606874,5.59922181,2521.1,2520.6,6.65370687]
[1729788607165,5.59923181,2521.1,2520.6,2.60713996]
[1729788607668,5.59906181,2521.2,2520.6,7.40236417]
[1729788607880,5.59906181,2521.2,2520.8,0.7827]
[1729788608054,0.827,2521.3,2520.8,4.74968]
[1729788608055,5.59892181,2521.3,2520.8,4.74968]
[1729788608239,1.63268181,2521.2,2520.8,4.74968]
[1729788608589,1.63268181,2521.4,2521.0,0.7827]
[1729788608732,5.59875181,2521.4,2521.0,0.7827]
[1729788609378,5.59899181,2521.3,2521.0,0.7827]
[1729788609530,1.63268181,2521.2,2521.0,0.7827]
[1729788609733,5.59899181,2521.3,2521.0,0.7827]
[1729788610266,5.59898181,2521.3,2521.0,0.7827]
[1729788612032,1.63268181,2521.2,2521.0,0.7827]
[1729788612232,3.9663,2521.3,2521.0,0.7827]
[1729788612233,5.59898181,2521.3,2521.0,0.7827]
[1729788612884,5.59920181,2521.1,2521.0,0.7827]
[1729788613169,5.59931181,2521.1,2520.8,0.8307]
[1729788613475,3.96677,2521.0,2520.8,0.8307]
[1729788614253,3.96683,2520.9,2520.8,0.8307]
[1729788614453,7.9336,2521.0,2520.8,0.8307]
[1729788614657,3.96677,2521.0,2520.8,0.8307]
[1729788615769,3.96655,2521.1,2520.8,0.8307]
[1729788616047,3.96639,2521.2,2520.8,0.8307]
[1729788616316,3.96639,2521.2,2520.8,2.03259983]
[1729788616447,3.96631,2521.3,2520.9,0.819]
[1729788616952,5.59899181,2521.3,2520.9,0.819]
[1729788617160,3.96631,2521.3,2520.9,0.819]
[1729788617358,3.96631,2521.3,2520.9,2.06455623]
[1729788617563,1.63268181,2521.3,2520.9,2.06455623]
[1729788617779,5.59889181,2521.3,2520.9,2.06455623]